bitfinex/quotes_SOLUSD_20241010
["timestamp","ask_amount","ask_price","bid_price","bid_amount"]
[1728549067611,7.1368,140.12,140.09,1.42748604]
[1728549067811,7.1368,140.12,140.08,30.915584]
[1728549068026,7.1368,140.12,140.09,1.42751256]
[1728549068226,6.252,140.15,140.09,1.42751256]
[1728549068611,7.1367,140.13,140.09,1.42751256]
[1728549070209,7.1367,140.13,140.1,23.776884]
[1728549070938,7.1367,140.13,140.09,23.776884]
[1728549071809,20.25098,140.15,140.09,23.776884]
[1728549072118,7.1369,140.12,140.09,23.776884]
[1728549072531,7.1369,140.12,140.09,25.20426127]
[1728549072731,7.1363,140.13,140.09,25.20426127]
[1728549073049,20.0,140.13,140.09,32.34226127]
[1728549073426,7.1368,140.12,140.09,23.776884]
[1728549074529,7.1374,140.11,140.09,23.776884]
[1728549076046,7.1374,140.11,140.08,23.776884]
[1728549076247,7.1374,140.11,140.07,25.20439739]
[1728549076443,7.1374,140.11,140.07,32.34349739]
[1728549076943,7.1374,140.11,140.07,30.915984]
[1728549078045,7.1374,140.11,140.09,23.776884]
[1728549078245,7.1374,140.11,140.08,23.776884]
[1728549079425,7.1374,140.11,140.08,25.20439581]
[1728549079838,7.1374,140.11,140.08,23.776884]
[1728549081731,7.1374,140.11,140.08,25.20439604]
[1728549082834,7.1374,140.11,140.08,23.776884]
[1728549088731,7.1374,140.11,140.08,25.20438498]
[1728549089551,7.1374,140.11,140.08,23.776884]
[1728549090057,7.1374,140.11,140.08,25.20438694]
[1728549091040,7.1374,140.11,140.08,23.776884]
[1728549092355,7.1378,140.1,140.07,23.776884]
[1728549092559,20.0,140.12,140.05,16.569]
[1728549092869,20.0,140.12,140.02,17.8537]
[1728549092870,7.1394,140.07,140.03,7.1411]
[1728549093238,7.1394,140.07,140.02,34.1119]
[1728549093438,7.1394,140.07,140.02,41.2537]
[1728549095755,7.1394,140.07,140.03,23.776884]
[1728549096451,7.1394,140.07,140.04,1.42797914]
[1728549098866,7.1394,140.07,140.04,1.42797935]
[1728549100543,7.1394,140.07,140.03,23.776884]
[1728549100742,7.1394,140.07,140.03,25.20486172]
[1728549101150,7.1394,140.07,140.03,23.776884]
[1728549101637,7.1394,140.07,140.04,1.42797864]
[1728549104749,7.1394,140.07,140.03,30.917984]
[1728549105050,7.1394,140.07,140.04,1.42797765]
[1728549105669,7.1394,140.07,140.03,30.917984]
[1728549106962,7.1394,140.07,140.05,23.776884]
[1728549107670,7.1394,140.07,140.04,23.776884]
[1728549109066,7.1394,140.07,140.04,25.20479813]
[1728549110077,7.1394,140.07,140.04,23.776884]
[1728549110370,7.1383,140.09,140.05,1.42790219]
[1728549110863,7.1378,140.1,140.06,23.776884]
[1728549111055,7.1378,140.1,140.07,1.4276575]
[1728549112377,7.1373,140.11,140.08,23.776884]
[1728549113369,7.1373,140.11,140.07,23.776884]
[1728549113866,20.0,140.13,140.07,23.776884]
[1728549114065,7.1381,140.1,140.07,23.776884]
[1728549120383,0.12549,140.12,140.04,6.2155]
[1728549120561,7.1393,140.07,140.04,23.776884]
[1728549120956,7.1398,140.06,140.03,17.8524]
[1728549121486,7.1404,140.05,140.02,16.2582]
[1728549121660,17.8475,140.08,140.0,17.8564]
[1728549121982,7.1419,140.02,139.98,23.6915]
[1728549122566,0.12549,140.07,139.98,23.6915]
[1728549122766,7.1414,140.03,139.98,23.6915]
[1728549123086,7.1419,140.02,139.98,16.5478]
[1728549123265,7.1419,140.02,139.97,17.8603]
[1728549123581,7.1419,140.02,139.97,25.0046]
[1728549123881,7.1409,140.04,139.99,7.1432]
[1728549124084,7.1409,140.04,140.0,1.42836237]
[1728549124285,7.1409,140.04,140.0,8.57116237]
[1728549124669,20.25098,140.07,140.01,23.776884]
[1728549124860,7.1404,140.05,140.01,23.776884]
[1728549125064,7.1408,140.04,140.01,23.776884]
[1728549126993,0.12549,140.07,139.97,17.8603]
[1728549127192,7.1423,140.01,139.97,17.8603]
[1728549127495,7.1419,140.02,139.97,25.0045]
[1728549128378,7.1419,140.02,139.98,25.2054353]
[1728549129492,7.1419,140.02,139.98,23.776884]
[1728549129705,7.1419,140.02,139.98,25.20543355]
[1728549130198,7.1419,140.02,139.98,23.776884]
[1728549130402,7.1419,140.02,139.98,25.20543256]
[1728549130604,7.1419,140.02,139.98,23.776884]
[1728549132786,0.12549,140.04,139.95,15.798]
[1728549133289,7.1428,140.0,139.95,22.943]
[1728549134381,7.1428,140.0,139.96,23.776884]
[1728549135769,7.1428,140.0,139.96,32.35038395]
[1728549136172,7.1424,140.01,139.96,32.35038395]
[1728549139186,7.1424,140.01,139.96,30.921684]
[1728549139684,7.1424,140.01,139.97,1.42862819]
[1728549140292,7.1424,140.01,139.96,30.921684]
[1728549141372,7.1424,140.01,139.97,1.42862813]
[1728549141774,7.1424,140.01,139.96,30.921684]
[1728549142095,7.143,140.0,139.96,30.921684]
[1728549142472,7.143,140.0,139.96,23.776884]
[1728549144188,7.143,140.0,139.96,30.921684]
[1728549144893,7.143,140.0,139.96,32.35037251]
[1728549145097,0.12549,140.04,139.96,32.35037251]
[1728549145401,36.3229,140.05,139.96,56.71166703]
[1728549146099,36.3229,140.05,140.0,23.776884]
[1728549146100,7.1412,140.04,140.0,23.776884]
[1728549146394,7.1412,140.04,140.0,25.20521536]
[1728549147713,7.1412,140.04,140.0,32.34781536]
[1728549148592,7.1412,140.04,140.0,25.20521536]
[1728549148909,7.1412,140.04,140.0,23.776884]
[1728549150409,20.25098,140.07,140.0,23.776884]
[1728549150606,7.1414,140.03,140.0,23.776884]
[1728549150787,7.142,140.02,139.99,23.776884]
[1728549151188,7.142,140.02,139.95,29.56818452]
[1728549151189,7.1428,140.0,139.95,33.6608]
[1728549151404,7.1428,140.0,139.95,40.8057]
[1728549152182,7.1428,140.0,139.96,7.1447]
[1728549152916,7.1428,140.0,139.97,23.776884]
[1728549153290,7.1428,140.0,139.97,25.20554212]
[1728549154599,7.1428,140.0,139.97,23.776884]
[1728549155207,7.1428,140.0,139.97,25.20554353]
[1728549155622,7.1428,140.0,139.97,23.776884]
[1728549157198,7.1428,140.0,139.97,25.20554269]
[1728549157397,7.1428,140.0,139.97,23.776884]
[1728549157617,7.1428,140.0,139.97,25.20554269]
[1728549158564,7.1424,140.01,139.97,25.20554269]
[1728549158712,7.1424,140.01,139.97,23.776884]
[1728549162292,7.1422,140.02,139.98,1.42854502]
[1728549162491,7.1422,140.02,139.98,8.57234502]
[1728549162897,7.1422,140.02,139.98,7.1438]
[1728549164012,7.1422,140.02,139.99,23.776884]
[1728549167903,7.1422,140.02,139.99,25.20532751]
[1728549168099,7.1422,140.02,139.99,25.20532901]
[1728549168303,7.1422,140.02,139.99,23.776884]
[1728549169225,7.1428,140.01,139.96,23.776884]
[1728549169528,7.1428,140.01,139.96,30.921484]
[1728549170430,0.12549,140.03,139.95,33.6608]
[1728549170625,7.1434,139.99,139.95,40.806]
[1728549171727,7.1434,139.99,139.96,23.776884]
[1728549173552,7.1434,139.99,139.96,25.2056277]
[1728549175338,7.1425,140.01,139.97,7.1443]
[1728549176433,7.1425,140.01,139.96,30.921684]
[1728549179808,7.1425,140.01,139.97,1.42865644]
[1728549180106,7.1425,140.01,139.96,30.921684]
[1728549181048,7.1429,140.0,139.96,30.921684]
[1728549182615,7.1429,140.0,139.97,1.42865653]
[1728549182806,7.1429,140.0,139.96,30.921684]
[1728549184128,27.1414,140.03,139.98,30.920684]
[1728549184328,7.1414,140.03,139.99,8.57171681]
[1728549184833,7.1414,140.03,139.98,30.920584]
[1728549185140,7.1419,140.02,139.98,30.920584]
[1728549186845,7.1419,140.02,139.99,1.42843989]
[1728549188834,7.1419,140.02,139.98,30.920584]
[1728549190544,7.1424,140.01,139.98,23.776884]
[1728549190736,7.1432,140.0,139.95,22.9432]
[1728549190939,0.25098,140.04,139.95,22.9432]
[1728549192235,0.25098,140.04,139.96,23.776884]
[1728549192553,7.1434,139.99,139.96,23.776884]
[1728549194346,18.10358,140.04,139.97,1.42872518]
[1728549194535,7.143,140.0,139.97,1.42872518]
[1728549195246,7.143,140.0,139.96,23.776884]
[1728549195544,7.143,140.0,139.96,25.20560346]
[1728549196135,7.143,140.0,139.96,23.776884]
[1728549199424,7.1435,139.99,139.95,15.798]
[1728549200230,7.1438,139.98,139.95,15.798]
[1728549200925,20.25098,140.01,139.94,23.776884]
[1728549201126,7.1445,139.97,139.93,23.776884]
[1728549201327,7.1449,139.96,139.92,7.1468]
[1728549201733,7.1449,139.96,139.91,39.4396]
[1728549201934,7.1449,139.96,139.91,46.5868]
[1728549203648,7.1449,139.96,139.92,23.776884]
[1728549203856,7.1444,139.97,139.92,32.35286543]
[1728549205034,7.1444,139.97,139.92,25.20596543]
[1728549205230,7.1438,139.98,139.92,38.85065995]
[1728549205534,27.1424,140.01,139.95,23.776884]
[1728549205735,7.46714521,140.02,139.97,30.920784]
[1728549206042,6.5533,140.05,139.98,1.42859633]
[1728549206240,6.5533,140.05,139.97,30.920784]
[1728549206557,7.4599668,140.04,139.97,30.920784]
[1728549206736,7.1422,140.02,139.97,30.920784]
[1728549206930,20.0,140.01,139.97,30.920784]
[1728549207130,20.0,140.0,139.97,30.920784]
[1728549207859,7.1419,140.02,139.98,1.42855904]
[1728549209851,6.5533,140.05,139.97,23.776884]
[1728549209852,7.1433,139.99,139.97,23.776884]
[1728549210060,7.1429,140.0,139.97,23.776884]
[1728549216043,7.1424,140.01,139.97,23.776884]
[1728549218246,7.1419,140.02,139.98,1.42859219]
[1728549218458,7.1419,140.02,139.97,30.920984]
[1728549219172,7.1423,140.01,139.97,30.920984]
[1728549220757,7.1423,140.01,139.98,1.4285006]
[1728549221750,7.1423,140.01,139.97,30.920984]
[1728549231678,7.1428,140.0,139.97,23.776884]
[1728549236165,20.25098,140.04,139.97,23.776884]
[1728549236372,7.1433,139.99,139.96,15.8682]
[1728549237969,7.1429,140.0,139.96,15.8682]
[1728549238662,7.1429,140.0,139.97,1.42865567]
[1728549241182,7.1429,140.0,139.96,23.013]
[1728549242259,7.1429,140.0,139.97,1.4286557]
[1728549243673,7.1429,140.0,139.96,15.8682]
[1728549243876,7.1434,139.99,139.96,23.776884]
[1728549244186,20.25098,140.04,139.96,23.776884]
[1728549244187,7.1429,140.0,139.96,23.776884]
[1728549246377,20.25098,140.04,139.96,23.776884]
[1728549246577,7.1434,139.99,139.96,23.776884]
[1728549247478,20.25098,140.04,139.98,23.776884]
[1728549247479,7.1427,140.01,139.98,23.776884]
[1728549248269,20.0,140.01,139.98,23.776884]
[1728549250186,7.1424,140.01,139.98,23.776884]
[1728549250686,7.1424,140.01,139.97,23.776884]
[1728549251887,7.1428,140.0,139.97,23.776884]
[1728549252181,7.1434,139.99,139.96,16.6255]
[1728549253688,7.1434,139.99,139.97,1.42866692]
[1728549255866,7.1434,139.99,139.96,16.6255]
[1728549260101,20.12549,140.04,139.97,23.776884]
[1728549260304,7.1428,140.0,139.97,25.20554816]
[1728549260607,7.1423,140.01,139.97,32.34984816]
[1728549262101,7.1423,140.01,139.97,23.776884]
[1728549264304,20.12549,140.04,139.97,23.776884]
[1728549264511,7.1432,140.0,139.97,23.776884]
[1728549265703,7.1432,140.0,139.96,16.6255]
[1728549268009,7.1437,139.99,139.96,16.6255]
[1728549268203,7.1437,139.99,139.96,23.776884]
[1728549278804,7.1437,139.99,139.95,17.8627]
[1728549279515,7.1447,139.97,139.93,15.1048]
[1728549279724,6.57829,140.01,139.9,15.949]
[1728549279915,7.1468,139.93,139.9,15.949]
[1728549280221,7.1468,139.93,139.89,17.8704]
[1728549281395,7.1468,139.93,139.89,25.0187]
[1728549282917,7.1449,139.96,139.92,7.1469]
[1728549283105,7.1449,139.96,139.9,44.56897852]
[1728549283305,7.1449,139.96,139.92,23.776884]
[1728549285227,7.1449,139.96,139.93,1.42910858]
[1728549285709,20.0,139.96,139.93,1.42898328]
[1728549287321,20.0,139.96,139.92,30.923584]
[1728549287817,7.1445,139.97,139.92,30.923584]
[1728549291412,7.1455,139.95,139.92,23.776884]
[1728549293428,7.1464,139.93,139.92,23.776884]
[1728549293720,20.0,139.97,139.91,23.776884]
[1728549294512,7.1454,139.95,139.91,23.776884]
[1728549294823,7.145,139.96,139.93,23.776884]
[1728549295606,7.145,139.96,139.92,23.776884]
[1728549299540,7.145,139.96,139.93,1.42901437]
[1728549300917,20.0,139.98,139.92,23.776884]
[1728549300918,7.1455,139.95,139.92,23.776884]
[1728549301808,7.1455,139.95,139.93,1.42907036]
[1728549302513,20.0,139.98,139.93,1.42907036]
[1728549302514,7.1449,139.96,139.93,1.42907036]
[1728549302713,7.144,139.98,139.94,23.776884]
[1728549302930,7.1435,139.99,139.95,1.4287995]
[1728549303141,7.4527426,140.01,139.95,1.4287995]
[1728549303340,7.144,139.98,139.93,23.776884]
[1728549303645,7.144,139.98,139.95,23.776884]
[1728549304419,7.144,139.98,139.94,23.776884]
[1728549304745,7.4527426,140.01,139.95,1.42880927]
[1728549304746,40.5836,140.0,139.95,1.42880927]
[1728549304916,22.7259,139.98,139.85,17.8752]
[1728549305235,7.148,139.9,139.85,25.0255]
[1728549307030,7.148,139.9,139.86,23.776884]
[1728549307236,7.1475,139.91,139.86,30.926784]
[1728549308629,7.147,139.92,139.88,23.776884]
[1728549308826,20.12549,139.95,139.89,1.4294488]
[1728549309031,20.12549,139.95,139.83,105.7555]
[1728549309032,7.1501,139.86,139.81,7.152]
[1728549309224,7.1501,139.86,139.8,16.1072]
[1728549309427,7.1501,139.86,139.8,23.2602]
[1728549311649,7.1501,139.86,139.81,23.776884]
[1728549312642,7.1501,139.86,139.81,30.929284]
[1728549313044,7.1495,139.87,139.82,8.58193815]
[1728549313246,7.1495,139.87,139.83,23.776884]
[1728549313535,20.25098,139.85,139.75,1.23883065]
[1728549313745,20.25098,139.85,139.76,17.8875]
[1728549313918,7.1529,139.81,139.76,17.8875]
[1728549314118,20.25098,139.85,139.76,25.0424]
[1728549314119,7.1521,139.82,139.76,25.0424]
[1728549314337,7.1521,139.82,139.78,1.43047951]
[1728549314948,7.1526,139.81,139.76,25.0424]
[1728549315134,7.1526,139.81,139.78,23.776884]
[1728549315326,20.12549,139.85,139.78,23.776884]
[1728549315531,7.1519,139.83,139.78,23.776884]
[1728549316744,7.1519,139.83,139.78,30.930784]
[1728549317255,7.1519,139.83,139.8,23.776884]
[1728549317833,20.0,139.85,139.8,23.776884]
[1728549318036,20.0,139.85,139.79,23.776884]
[1728549319055,27.1505,139.85,139.81,23.776884]
[1728549320655,20.0,139.85,139.82,1.43012414]
[1728549320953,7.1501,139.86,139.83,23.776884]
[1728549321257,7.1501,139.86,139.84,1.43000713]
[1728549321559,7.1501,139.86,139.82,23.776884]
[1728549322361,7.1501,139.86,139.82,25.20691939]
[1728549323140,7.1501,139.86,139.82,23.776884]
[1728549325632,20.0,139.89,139.85,7.1501]
[1728549325966,33.4148,139.94,139.87,23.776884]
[1728549326269,7.1479,139.9,139.87,23.776884]
[1728549326554,7.1479,139.9,139.86,23.776884]
[1728549327761,7.1474,139.91,139.87,30.0]
[1728549328242,7.1474,139.91,139.88,1.42955382]
[1728549328442,7.1474,139.91,139.87,30.0]
[1728549328847,15.5498,139.94,139.88,23.776884]
[1728549329163,15.5498,139.94,139.88,62.3552399]
[1728549329164,7.147,139.92,139.88,62.3552399]
[1728549329660,7.147,139.92,139.88,53.776884]
[1728549330350,20.0,139.93,139.88,53.776884]
[1728549330663,7.1475,139.91,139.88,53.776884]
[1728549332256,7.147,139.92,139.88,53.776884]
[1728549333341,7.1475,139.91,139.88,53.776884]
[1728549338483,7.147,139.92,139.88,53.776884]
[1728549340783,7.147,139.92,139.88,23.776884]
[1728549343676,7.147,139.92,139.88,53.776884]
[1728549350677,7.147,139.92,139.89,1.4294128]
[1728549350877,7.147,139.92,139.89,31.4294128]
[1728549351070,7.147,139.92,139.89,30.0]
[1728549354006,7.1475,139.91,139.89,30.0]
[1728549354387,7.1479,139.9,139.89,30.0]
[1728549357997,7.1479,139.9,139.87,23.776884]
[1728549359504,7.1475,139.91,139.87,23.776884]
[1728549362103,7.1481,139.9,139.87,23.776884]
[1728549362699,7.1489,139.89,139.86,16.5645]
[1728549362881,0.25098,139.92,139.82,34.5167]
[1728549364115,0.25098,139.92,139.83,23.776884]
[1728549364284,7.46093674,139.91,139.82,34.5167]
[1728549364487,7.1495,139.87,139.83,7.1515]
[1728549365906,7.1495,139.87,139.84,23.776884]
[1728549366902,7.149,139.88,139.84,30.927684]
[1728549373419,7.149,139.88,139.81,19.85479452]
[1728549373420,36.12198,139.88,139.81,1.42982312]
[1728549373630,36.12198,139.88,139.77,7.9952354]
[1728549373791,20.25098,139.85,139.77,0.8411354]
[1728549374617,20.12549,139.85,139.77,0.8411354]
[1728549375217,20.12549,139.85,139.78,23.776884]
[1728549376624,7.1521,139.82,139.78,30.930884]
[1728549377403,7.1521,139.82,139.78,23.776884]
[1728549377823,7.1516,139.83,139.78,30.930784]
[1728549377994,13.2931,139.83,139.78,30.930784]
[1728549378196,20.0,139.85,139.77,0.8411354]
[1728549378197,20.25098,139.8,139.77,0.8411354]
[1728549378506,27.154,139.78,139.77,0.8411354]
[1728549387118,7.1537,139.79,139.77,0.8411354]
[1728549387420,7.154,139.78,139.77,0.8411354]
[1728549394140,7.4675035,139.82,139.77,0.8411354]
[1728549394330,21.4219,139.84,139.77,0.8411354]
[1728549394331,20.25098,139.83,139.77,0.8411354]
[1728549394525,7.1535,139.79,139.77,0.8411354]
[1728549398235,7.1525,139.81,139.78,23.776884]
[1728549398419,18.00219,139.85,139.78,23.776884]
[1728549399038,7.1524,139.82,139.78,23.776884]
[1728549413445,7.1526,139.81,139.78,23.776884]
[1728549413763,7.1539,139.79,139.77,0.8411354]
[1728549415739,17.8793,139.83,139.77,0.8411354]
[1728549415942,7.154,139.78,139.77,0.8411354]
[1728549418755,27.154,139.78,139.77,0.8411354]
[1728549420340,27.40498,139.78,139.77,0.8411354]
[1728549422517,27.154,139.78,139.77,0.8411354]
[1728549437451,7.154,139.78,139.77,0.8411354]
[1728549437641,27.154,139.78,139.77,0.8411354]
[1728549440462,20.0,139.76,139.66,1.23966778]
[1728549440644,20.0,139.76,139.66,15.3798]
[1728549440645,0.12549,139.75,139.66,15.3798]
[1728549440839,7.1589,139.69,139.66,15.3798]
[1728549442561,7.1593,139.68,139.66,15.3798]
[1728549444354,0.25098,139.73,139.66,15.3798]
[1728549444551,7.1587,139.69,139.66,15.3798]
[1728549445166,7.1582,139.7,139.66,15.3798]
[1728549445368,7.1587,139.69,139.66,15.3798]
[1728549453271,7.7067929,139.73,139.66,15.3798]
[1728549453451,7.1582,139.7,139.66,15.3798]
[1728549453651,7.1588,139.69,139.66,15.3798]
[1728549458476,7.1582,139.7,139.66,15.3798]
[1728549458800,7.1578,139.71,139.67,25.20861286]
[1728549459155,7.1578,139.71,139.67,23.776884]
[1728549460391,7.1587,139.69,139.66,15.3798]
[1728549461573,20.25098,139.74,139.66,15.3798]
[1728549461774,7.1583,139.7,139.66,15.3798]
[1728549464873,7.1583,139.7,139.67,23.776884]
[1728549466067,20.25098,139.74,139.68,1.43167072]
[1728549466068,7.1572,139.72,139.68,1.43167072]
[1728549467081,7.1578,139.71,139.68,1.43167072]
[1728549468283,7.1578,139.71,139.67,30.936184]
[1728549473380,20.12549,139.74,139.66,40.4398]
[1728549473381,7.1582,139.7,139.66,40.4398]
[1728549473554,7.1582,139.7,139.66,33.2797]
[1728549476256,7.1588,139.69,139.66,33.2797]
[1728549482567,3.4069055,139.69,139.66,33.2797]
[1728549482769,0.12549,139.73,139.66,33.2797]
[1728549483682,7.1591,139.69,139.66,15.3798]
[1728549489971,7.1591,139.69,139.65,7.1606]
[1728549499611,7.1582,139.7,139.65,7.1606]
[1728549499813,7.1582,139.7,139.63,32.39002992]
[1728549500102,27.1578,139.71,139.67,7.1596]
[1728549500284,27.1578,139.71,139.66,30.936984]
[1728549501796,7.1587,139.69,139.66,23.776884]
[1728549502187,7.1583,139.7,139.66,30.937084]
[1728549502495,7.1583,139.7,139.66,23.776884]
[1728549503298,7.1587,139.69,139.65,25.0616]
[1728549508479,7.1587,139.69,139.65,17.9013]
[1728549508677,20.12549,139.73,139.65,17.9013]
[1728549508678,7.1592,139.68,139.65,23.776884]
[1728549508982,7.16,139.67,139.63,0.8411354]
[1728549509181,35.26848,139.71,139.63,0.8411354]
[1728549509182,42.71857598,139.71,139.63,0.8411354]
[1728549509485,7.1603,139.66,139.63,0.8411354]
[1728549510984,42.71857598,139.71,139.63,0.8411354]
[1728549511184,7.1598,139.67,139.63,0.8411354]
[1728549517280,7.1604,139.66,139.63,0.8411354]
[1728549517487,7.1608,139.65,139.63,0.8411354]
[1728549524411,17.8986,139.68,139.63,8.0027354]
[1728549524412,20.0,139.67,139.63,8.0027354]
[1728549524612,27.1599,139.67,139.63,8.0027354]
[1728549525202,7.1599,139.67,139.63,8.0027354]
[1728549527011,7.1599,139.67,139.63,0.8411354]
[1728549528124,40.48676976,139.71,139.63,0.8411354]
[1728549528125,20.0,139.7,139.63,0.8411354]
[1728549528413,7.1602,139.66,139.63,0.8411354]
[1728549533499,7.1609,139.65,139.63,0.8411354]
[1728549541107,17.8972,139.69,139.63,0.8411354]
[1728549541108,7.1612,139.64,139.63,0.8411354]
[1728549541912,7.41218,139.64,139.63,0.8411354]
[1728549566346,14.85459205,139.64,139.63,0.8411354]
[1728549568327,7.41218,139.64,139.63,0.8411354]
[1728549570253,7.1612,139.64,139.63,0.8411354]
[1728549571540,7.41218,139.64,139.63,0.8411354]
[1728549576152,7.44354793,139.66,139.63,0.8411354]
[1728549576153,7.1608,139.65,139.63,0.8411354]
[1728549577323,7.1612,139.64,139.63,0.8411354]
[1728549577530,7.28669,139.64,139.63,0.8411354]
[1728549577747,7.41218,139.64,139.63,0.8411354]
[1728549585765,0.12549,139.64,139.63,0.8411354]
[1728549585942,7.28669,139.64,139.63,0.8411354]
[1728549586641,7.41218,139.64,139.63,0.8411354]
[1728549603572,7.1612,139.64,139.63,0.8411354]
[1728549606483,20.0,139.65,139.63,0.8411354]
[1728549606659,27.1608,139.65,139.63,0.8411354]
[1728549608380,20.0,139.66,139.63,0.8411354]
[1728549608562,7.1612,139.64,139.63,0.8411354]
[1728549615472,20.0,139.66,139.63,0.8411354]
[1728549615473,7.1609,139.65,139.63,0.8411354]
[1728549620864,7.1598,139.67,139.63,0.8411354]
[1728549621085,32.7285108,139.72,139.65,23.776884]
[1728549621291,7.158,139.71,139.67,23.776884]
[1728549622496,7.1572,139.72,139.67,30.936484]
[1728549623273,7.1577,139.71,139.67,30.936484]
[1728549624292,7.1572,139.72,139.68,15.3369]
[1728549624477,27.1567,139.73,139.69,7.1587]
[1728549624881,7.1571,139.72,139.68,15.3369]
[1728549628383,7.1582,139.7,139.68,15.3369]
[1728549630479,7.1572,139.72,139.68,15.3369]
[1728549630784,7.1572,139.72,139.68,16.76853228]
[1728549631407,7.1572,139.72,139.68,15.3369]
[1728549631715,7.1572,139.72,139.69,1.43158056]
[1728549632080,7.1581,139.71,139.68,15.3369]
[1728549635308,0.25098,139.74,139.68,15.3369]
[1728549635491,7.1573,139.72,139.68,15.3369]
[1728549641103,7.1582,139.7,139.68,15.3369]
[1728549643918,0.25098,139.74,139.68,15.3369]
[1728549643919,7.1587,139.69,139.68,15.3369]
[1728549648192,7.1583,139.7,139.68,15.3369]
[1728549651095,0.25098,139.74,139.66,6.3856]
[1728549651296,0.25098,139.74,139.64,15.3315]
[1728549651297,7.1588,139.69,139.65,23.776884]
[1728549654710,7.1588,139.69,139.65,30.937484]
[1728549654890,7.1583,139.7,139.66,1.4317805]
[1728549655511,7.1583,139.7,139.66,7.1602]
[1728549659809,7.1583,139.7,139.66,8.5919074]
[1728549660406,7.1583,139.7,139.66,7.1602]
[1728549662315,7.1583,139.7,139.66,8.59190751]
[1728549662990,7.158,139.71,139.66,8.59190751]
[1728549663196,7.158,139.71,139.67,23.776884]
[1728549663402,7.158,139.71,139.68,1.43164142]
[1728549664406,7.158,139.71,139.67,1.43163509]
[1728549666612,0.25098,139.74,139.68,1.43165598]
[1728549666816,7.1572,139.72,139.68,1.43165598]
[1728549667329,7.1572,139.72,139.68,7.1592]
[1728549667514,7.1572,139.72,139.69,1.4315111]
[1728549670527,7.1562,139.74,139.7,23.776884]
[1728549670837,12.86387126,139.76,139.72,30.933584]
[1728549671015,7.1546,139.77,139.73,8.58766374]
[1728549671207,7.1546,139.77,139.73,1.43106374]
[1728549671527,7.1546,139.77,139.72,47.106584]
[1728549674039,7.1546,139.77,139.73,1.43099224]
[1728549677332,7.1546,139.77,139.72,47.106584]
[1728549677834,0.12549,139.79,139.72,39.949584]
[1728549678010,0.12549,139.79,139.68,35.7959]
[1728549678011,20.25098,139.77,139.69,7.1586]
[1728549678216,7.1576,139.71,139.68,47.3353]
[1728549678814,7.1573,139.72,139.68,47.3353]
[1728549679432,7.1573,139.72,139.69,23.776884]
[1728549692545,7.1568,139.73,139.7,1.43140892]
[1728549693121,7.1563,139.74,139.7,7.158]
[1728549693322,7.1563,139.74,139.71,23.776884]
[1728549694849,7.1551,139.76,139.72,7.1568]
[1728549695148,7.1557,139.75,139.71,30.934384]
[1728549695526,7.1562,139.74,139.71,23.776884]
[1728549696244,20.0,139.78,139.71,23.776884]
[1728549696557,20.0,139.78,139.71,30.934484]
[1728549696558,7.1557,139.75,139.71,30.934484]
[1728549697129,7.1551,139.76,139.72,8.58826253]
[1728549697659,7.1551,139.76,139.73,23.776884]
[1728549697848,7.1551,139.76,139.74,1.43104468]
[1728549698048,7.1551,139.76,139.73,1.43104468]
[1728549700467,7.1547,139.77,139.73,8.58754468]
[1728549701254,7.1547,139.77,139.74,30.932984]
[1728549701452,29.48958695,139.8,139.76,25.0421]
[1728549701453,7.44168695,139.8,139.76,25.0421]
[1728549701754,12.85324927,139.83,139.77,1.43064575]
[1728549702063,7.1536,139.79,139.76,23.776884]
[1728549706567,20.0,139.82,139.77,1.43067712]
[1728549707264,7.1521,139.82,139.78,30.930884]